bitfinex/quotes_ETHUSD_20250110
["timestamp","ask_amount","ask_price","bid_price","bid_amount"]
[1736482662604,0.02064073,3260.3,3259.6,0.231]
[1736482662771,0.02064073,3260.3,3259.7,3.06776]
[1736482662976,0.02064073,3260.3,3259.6,3.231]
[1736482663179,0.02064073,3260.3,3259.8,3.06758]
[1736482663780,0.7577,3260.4,3259.9,3.06756]
[1736482664419,0.02064073,3260.3,3259.9,3.06756]
[1736482664577,0.7577,3260.4,3259.9,3.06756]
[1736482664783,0.02064073,3260.3,3259.6,0.231]
[1736482664982,0.02064073,3260.3,3259.7,3.06774]
[1736482665504,0.02064073,3260.3,3259.8,3.06764]
[1736482669282,0.8191,3260.2,3259.8,3.06764]
[1736482669482,0.02064073,3260.1,3259.8,3.06764]
[1736482670319,0.02064073,3260.1,3259.4,3.06796]
[1736482670519,2.28263598,3259.9,3259.2,3.06821]
[1736482670694,0.8191,3259.7,3259.2,3.06821]
[1736482670894,0.02064073,3259.6,3259.2,3.06821]
[1736482673683,0.02064073,3259.6,3259.0,3.0684]
[1736482673917,0.8191,3259.7,3259.4,3.06801]
[1736482679632,0.8191,3259.7,3259.2,3.0682]
[1736482680536,0.8191,3259.7,3259.1,3.06831]
[1736482680959,0.8191,3259.7,3258.9,0.231]
[1736482681115,0.8191,3259.7,3259.2,3.06822]
[1736482682339,0.02064073,3259.6,3259.2,3.06822]
[1736482683946,0.02064073,3259.6,3258.9,0.231]
[1736482684140,0.8191,3259.7,3259.0,0.03067998]
[1736482684312,0.8191,3259.7,3259.3,3.06808]
[1736482684515,6.0558,3260.0,3259.3,0.306808]
[1736482684727,0.7758,3260.6,3259.8,3.06765]
[1736482684908,2.30327671,3260.5,3259.6,3.06785]
[1736482685102,3.7758,3260.4,3259.6,3.06785]
[1736482685308,0.02064073,3260.3,3259.6,3.06785]
[1736482685762,0.6285484,3260.3,3259.6,3.06785]
[1736482685987,0.6285484,3260.3,3258.7,5.28263598]
[1736482685988,0.7743,3260.1,3259.3,3.06814]
[1736482686277,0.7743,3259.9,3259.3,3.06814]
[1736482686441,0.02064073,3259.8,3259.3,3.06814]
[1736482687025,0.02064073,3259.8,3259.0,0.231]
[1736482687225,0.7743,3259.6,3259.0,0.231]
[1736482687424,0.7743,3259.6,3259.0,3.29939]
[1736482687764,0.02064073,3259.5,3259.0,3.29939]
[1736482688373,0.02064073,3259.5,3258.8,3.06859]
[1736482688526,0.02064073,3259.5,3258.8,3.29959]
[1736482688527,3.02064073,3259.5,3258.8,3.29959]
[1736482688859,0.7887,3259.3,3258.5,3.06882]
[1736482689033,0.7887,3259.3,3258.5,3.29982]
[1736482689034,0.02064073,3259.2,3258.5,3.29982]
[1736482689447,0.02064073,3259.2,3258.6,3.06878]
[1736482689663,0.7887,3259.3,3258.7,3.06867]
[1736482690436,0.7887,3259.3,3258.5,0.231]
[1736482690755,0.7887,3259.3,3258.8,3.06855]
[1736482691960,0.02064073,3259.2,3258.5,0.231]
[1736482692137,0.02064073,3259.2,3258.6,3.06877]
[1736482693262,0.7887,3259.3,3258.7,3.06861]
[1736482693464,0.7887,3259.3,3258.5,0.231]
[1736482693627,0.7887,3259.3,3258.6,0.03068596]
[1736482693828,0.7579,3259.6,3259.1,3.06824]
[1736482694168,0.7579,3259.6,3259.2,3.06823]
[1736482694665,0.7579,3259.6,3259.0,0.231]
[1736482694884,0.7579,3259.6,3259.2,3.06817]
[1736482695695,0.7579,3259.6,3259.3,3.06813]
[1736482695836,0.8003,3259.9,3259.2,1.143117]
[1736482696163,0.02064073,3259.8,3259.4,3.06799]
[1736482696364,0.02064073,3259.8,3259.4,3.06804]
[1736482696575,0.8003,3259.9,3259.5,3.0679]
[1736482696747,0.02064073,3259.8,3259.5,3.0679]
[1736482701791,0.8003,3259.9,3259.3,0.0306783]
[1736482702083,0.7794,3260.2,3259.7,3.06773]
[1736482702244,0.02064073,3260.1,3259.7,3.06773]
[1736482702446,0.7794,3260.2,3259.7,3.06773]
[1736482703352,0.7794,3260.2,3259.5,0.03067613]
[1736482703353,0.7794,3260.2,3259.8,3.06758]
[1736482703561,0.7794,3260.2,3259.9,3.06756]
[1736482703957,6.07404,3261.0,3259.9,0.306756]
[1736482703958,0.7794,3260.9,3259.9,0.306756]
[1736482704264,0.7794,3260.9,3260.0,0.03067169]
[1736482704467,0.02064073,3260.8,3260.1,3.06733]
[1736482705075,0.02064073,3260.8,3259.9,0.231]
[1736482705076,0.02064073,3260.8,3260.3,3.06711]
[1736482705281,3.7794,3260.9,3260.4,3.06709]
[1736482705456,4.9136036,3260.9,3260.4,3.06709]
[1736482706162,5.28,3261.0,3260.2,0.82477061]
[1736482706503,0.8158,3261.4,3261.0,3.06653]
[1736482706804,0.8158,3261.4,3260.8,3.06664]
[1736482706962,0.8158,3261.4,3260.8,3.06667]
[1736482707144,0.8158,3261.4,3260.6,0.82826575]
[1736482707351,0.8158,3261.4,3260.9,3.0666]
[1736482707563,0.02064073,3261.3,3260.7,3.06682]
[1736482708983,0.8158,3261.4,3260.8,3.06671]
[1736482709549,0.02064073,3261.3,3260.8,3.06671]
[1736482711484,0.8158,3261.4,3260.9,3.06661]
[1736482711680,0.02064073,3261.3,3260.9,3.06661]
[1736482712285,0.8158,3261.4,3261.1,3.06643]
[1736482712486,0.02064073,3261.4,3261.1,3.06643]
[1736482712691,0.02064073,3261.4,3260.9,3.06663]
[1736482717092,0.02064073,3261.4,3261.0,3.06653]
[1736482722496,0.02064073,3261.4,3261.1,3.06644]
[1736482722677,0.02064073,3261.4,3261.2,3.06635]
[1736482723518,5.28,3261.5,3261.2,3.06635]
[1736482723824,0.02064073,3261.4,3261.0,3.06651]
[1736482725921,5.28,3261.5,3261.0,3.06651]
[1736482726125,0.02064073,3261.4,3261.0,3.06651]
[1736482726825,0.8332,3261.2,3260.4,3.06703]
[1736482726999,0.02064073,3261.1,3260.3,3.06712]
[1736482727202,0.02064073,3261.1,3260.0,3.29642]
[1736482727395,0.02064073,3261.1,3260.4,3.06709]
[1736482729426,0.02064073,3261.1,3260.5,3.06697]
[1736482731413,0.02064073,3261.1,3260.5,0.388837]
[1736482731615,0.02064073,3261.1,3260.6,3.06683]
[1736482732906,0.02064073,3261.1,3260.7,3.06673]
[1736482733105,0.8332,3261.2,3260.7,3.06673]
[1736482733326,0.02064073,3261.1,3260.7,3.06673]
[1736482733537,0.8332,3261.2,3260.7,3.06673]
[1736482733716,0.02064073,3261.1,3260.7,3.06673]
[1736482733921,0.8332,3261.2,3260.7,3.06673]
[1736482734135,0.02064073,3261.1,3260.7,3.06673]
[1736482734321,0.8332,3261.2,3260.7,3.06673]
[1736482735240,0.02064073,3261.1,3260.5,3.06698]
[1736482738007,0.8332,3261.2,3260.7,3.06678]
[1736482738748,0.02064073,3261.1,3260.7,3.06678]
[1736482739114,1.74452,3261.2,3260.7,3.06678]
[1736482739322,0.02064073,3261.1,3260.7,3.06678]
[1736482739511,0.02064073,3261.1,3260.4,0.8214]
[1736482739707,0.02064073,3261.1,3260.6,3.06691]
[1736482739919,0.4971568,3261.1,3260.6,3.06691]
[1736482741335,0.47651607,3261.1,3260.5,3.06701]
[1736482741537,0.02064073,3261.0,3260.6,3.06684]
[1736482741843,0.47651607,3261.1,3260.6,3.06684]
[1736482742146,0.8332,3261.2,3260.4,1.0484]
[1736482742323,5.28,3261.4,3260.5,0.03066714]
[1736482742641,0.02064073,3261.4,3261.1,3.0664]
[1736482744347,0.825,3261.7,3260.9,0.8139]
[1736482744545,0.825,3262.0,3261.3,0.8139]
[1736482744745,0.825,3262.0,3261.8,3.06576]
[1736482745851,0.825,3262.0,3261.9,3.06569]
[1736482746024,0.825,3262.4,3261.9,3.06569]
[1736482746223,0.02064073,3262.3,3261.9,3.06569]
[1736482746550,0.02064073,3262.3,3261.7,3.06586]
[1736482747544,0.02064073,3262.3,3261.3,4.10711]
[1736482747747,0.02064073,3262.3,3261.9,3.06561]
[1736482748120,0.825,3262.4,3261.9,3.06561]
[1736482748441,0.825,3262.4,3262.0,3.06557]
[1736482748744,0.02064073,3262.3,3262.0,3.06557]
[1736482749613,0.02064073,3262.3,3261.8,3.06578]
[1736482750632,0.02064073,3262.3,3261.6,3.06595]
[1736482752416,0.4052048,3262.3,3261.6,3.06595]
[1736482752617,0.7808,3262.1,3261.4,0.227]
[1736482752935,0.7808,3261.8,3260.8,3.06666]
[1736482753133,0.7808,3261.6,3260.9,3.06663]
[1736482753337,0.02064073,3261.5,3260.9,3.06663]
[1736482754146,0.02064073,3261.5,3260.7,1.0505]
[1736482754655,0.02064073,3261.5,3260.9,3.06661]
[1736482754856,0.02064073,3261.5,3261.0,3.06651]
[1736482755020,0.02064073,3261.5,3261.1,3.06642]
[1736482762591,0.02064073,3261.5,3260.1,7.59263598]
[1736482762592,0.02064073,3261.5,3260.8,0.227]
[1736482762769,3.0,3261.6,3260.8,0.227]
[1736482762972,1.6081048,3261.5,3260.8,0.227]
[1736482763160,1.6081048,3261.5,3260.9,3.06661]
[1736482764194,1.58746407,3261.5,3260.9,3.06661]
[1736482764518,0.7574,3261.5,3260.9,3.06661]
[1736482764970,0.7574,3261.5,3261.0,3.06653]
[1736482765170,0.77804073,3261.5,3261.0,3.06653]
[1736482765903,0.77804073,3261.5,3260.8,0.227]
[1736482766070,3.0,3261.6,3261.2,3.06627]
[1736482766274,3.02064073,3261.6,3261.2,3.06627]
[1736482766453,3.02064073,3261.6,3261.0,3.06646]
[1736482766659,0.8173,3261.5,3261.0,3.06646]
[1736482767091,0.8173,3261.5,3260.8,0.227]
[1736482767294,0.8173,3261.5,3261.1,3.06638]
[1736482768070,5.28,3261.7,3261.0,0.7765]
[1736482768278,5.28,3261.7,3261.4,3.06613]
[1736482768919,0.7819,3261.8,3261.4,3.06613]
[1736482769289,0.7819,3261.8,3261.0,0.7765]
[1736482769490,0.7819,3261.8,3261.5,3.06606]
[1736482769674,3.0,3262.1,3261.5,1.083106]
[1736482769675,3.7819,3262.1,3261.5,1.083106]
[1736482769870,5.28,3262.2,3261.6,0.03065885]
[1736482770103,0.7819,3262.9,3262.2,3.0654]
[1736482770298,0.7819,3262.9,3261.9,3.06561]
[1736482770499,0.7819,3262.7,3261.9,3.06561]
[1736482770690,0.7819,3262.7,3261.8,0.03065449]
[1736482770897,0.7819,3262.7,3261.9,0.33245345]
[1736482771103,0.02064073,3262.6,3261.9,0.33245345]
[1736482771302,0.02064073,3262.6,3261.9,3.06567]
[1736482772101,0.7819,3262.7,3261.7,0.228]
[1736482772302,0.02064073,3262.6,3262.0,3.06558]
[1736482772479,0.02064073,3262.6,3261.8,3.06576]
[1736482773311,0.02064073,3262.6,3261.7,0.228]
[1736482773527,0.02064073,3262.6,3261.9,3.06562]
[1736482774696,3.02064073,3262.6,3261.9,3.06562]
[1736482775179,3.0,3262.6,3261.9,3.06562]
[1736482775393,0.02064073,3262.5,3262.0,3.06551]
[1736482775794,0.8144,3262.4,3261.7,3.2938]
[1736482775997,0.8144,3262.1,3261.7,0.228]
[1736482776193,0.02064073,3262.0,3261.7,0.228]
[1736482776751,0.02064073,3262.0,3261.4,0.228]
[1736482776752,0.8168,3261.9,3261.4,0.228]
[1736482777063,0.02064073,3261.8,3261.4,0.228]
[1736482777408,0.8168,3261.9,3261.4,0.228]
[1736482777714,0.8168,3261.9,3261.4,3.29414]
[1736482778937,0.02064073,3261.8,3261.4,3.29414]
[1736482779419,0.8168,3261.9,3261.4,3.29414]
[1736482780233,0.02064073,3261.8,3261.4,3.29414]
[1736482780799,0.02064073,3261.8,3261.2,0.228]
[1736482781233,0.02064073,3261.8,3261.2,3.29431]
[1736482783137,0.8168,3261.9,3261.4,3.06616]
[1736482783313,0.8168,3261.9,3261.5,3.06603]
[1736482783715,0.8147,3262.1,3261.5,0.306603]
[1736482784011,0.8147,3262.4,3262.1,3.0655]
[1736482784216,0.8147,3262.9,3262.2,3.0654]
[1736482785298,0.8147,3262.9,3261.9,0.03065391]
[1736482785503,0.8147,3262.9,3262.4,3.06521]
[1736482785730,0.8147,3262.9,3262.5,3.06513]
[1736482786241,3.8147,3262.9,3262.5,3.06513]
[1736482786405,0.8147,3262.9,3262.3,0.83014928]
[1736482786601,0.8282,3263.5,3262.7,3.0649]
[1736482787517,3.8282,3263.5,3262.7,3.0649]
[1736482787844,0.02064073,3263.4,3262.7,3.0649]
[1736482788255,0.02064073,3263.4,3262.3,3.86476]
[1736482788256,0.8282,3263.3,3262.5,3.06512]
[1736482788416,0.02064073,3263.2,3262.5,3.06512]
[1736482790752,0.02064073,3263.2,3262.6,3.065]
[1736482790937,0.8282,3263.3,3262.6,3.065]
[1736482791314,0.02064073,3263.2,3262.6,3.065]
[1736482795010,0.8282,3263.3,3262.7,3.06491]
[1736482795593,0.8282,3263.3,3262.8,3.06483]
[1736482796795,0.02064073,3263.2,3262.8,3.06483]
[1736482796979,0.8282,3263.3,3262.8,3.06483]
[1736482797391,0.02064073,3263.2,3262.3,3.86481]
[1736482797701,0.02064073,3263.2,3262.6,3.06501]
[1736482797991,0.02064073,3263.2,3262.7,3.06492]
[1736482800105,0.8282,3263.1,3262.5,3.06511]
[1736482800260,0.02064073,3263.0,3262.5,3.06511]
[1736482800891,0.02064073,3263.0,3262.3,0.7995]
[1736482800892,0.8282,3262.9,3262.2,0.228]
[1736482801100,0.02064073,3262.8,3262.1,3.0655]
[1736482801286,0.02064073,3262.8,3262.1,3.2925]
[1736482801859,0.8282,3262.9,3262.1,0.227]
[1736482802191,0.8282,3262.9,3262.4,3.87674]
[1736482802395,3.0,3263.0,3262.5,0.03064952]
[1736482802590,5.28,3263.1,3262.5,0.03064952]
[1736482803417,5.28,3263.1,3262.8,3.06482]
[1736482804026,5.28,3263.1,3262.5,0.03064952]
[1736482804328,6.1036,3263.4,3263.0,3.06466]
[1736482804549,6.1036,3263.4,3263.0,3.448346]
[1736482804834,5.28,3263.4,3263.1,3.06456]
[1736482805390,0.8176,3263.9,3263.3,3.06438]
[1736482805616,5.28,3264.1,3263.8,3.0639]
[1736482805837,5.28,3264.1,3263.2,0.8247]
[1736482806010,5.28,3264.9,3263.7,0.7859]
[1736482806211,0.7985,3264.8,3264.1,3.0636]
[1736482806419,0.7985,3264.8,3264.2,3.06353]
[1736482806626,3.7985,3264.8,3264.2,3.06353]
[1736482806822,3.81914073,3264.8,3264.2,3.06353]
[1736482807028,3.7985,3264.8,3264.2,3.06353]
[1736482807333,0.7985,3264.8,3264.2,3.06353]
[1736482807511,0.81914073,3264.8,3264.2,3.06353]
[1736482808140,3.7985,3264.8,3264.2,3.06353]
[1736482808311,3.7985,3264.8,3264.3,3.06343]
[1736482808733,3.81914073,3264.8,3264.3,3.06343]
[1736482809052,0.7985,3264.8,3264.4,3.06325]
[1736482809535,0.7985,3264.8,3264.3,0.7992]
[1736482809758,0.8063,3265.1,3264.4,3.09389032]
[1736482809912,0.02064073,3265.0,3264.4,3.06326]
[1736482810312,3.8063,3265.1,3264.4,3.09389032]
[1736482810533,0.8063,3265.1,3264.5,3.06321]
[1736482811876,0.8063,3265.1,3264.4,0.03062919]
[1736482811877,0.8063,3265.1,3264.6,3.06315]
[1736482812079,0.8063,3265.1,3264.7,3.06306]
[1736482812289,0.8063,3265.1,3264.7,0.306306]
[1736482812470,0.8063,3265.1,3264.8,3.06296]
[1736482813037,0.8063,3265.1,3264.4,0.03062919]
[1736482813277,0.8063,3265.1,3264.6,3.06314]
[1736482814589,0.8063,3265.1,3264.7,3.06306]
[1736482815633,0.7649,3265.4,3264.7,3.06306]
[1736482816585,0.7649,3265.4,3264.8,3.39985305]
[1736482816929,0.7649,3265.4,3264.8,0.33693305]
[1736482817130,0.7649,3265.4,3264.9,3.06286]
[1736482818896,0.78554073,3265.4,3264.9,3.06286]
[1736482819493,0.78554073,3265.4,3264.7,3.06306]
[1736482819732,0.78554073,3265.4,3264.5,3.06325]
[1736482820126,0.7649,3265.4,3264.7,3.06304]
[1736482820442,0.7649,3265.4,3264.9,3.06287]
[1736482820644,6.0671,3266.1,3265.0,0.227]
[1736482820844,6.0671,3266.1,3265.2,0.8136]
[1736482821062,6.0671,3266.1,3265.6,3.06217]
[1736482821262,6.0671,3266.1,3265.7,3.06211]
[1736482821472,5.28,3266.1,3265.8,3.06203]
[1736482822283,0.7871,3266.4,3265.3,3.06243]
[1736482822412,0.7871,3266.4,3265.7,3.0621]
[1736482822607,0.74297543,3266.4,3265.7,3.0621]
[1736482822863,0.02064073,3266.3,3265.4,0.387603]
[1736482823164,0.02064073,3266.3,3265.5,3.06231]
[1736482823659,0.02064073,3266.3,3265.2,0.8136]
[1736482823955,3.02064073,3266.3,3265.4,3.0624]
[1736482824252,3.02064073,3266.3,3265.5,3.0623]
[1736482824452,0.02064073,3266.3,3265.5,3.0623]
[1736482824749,0.02064073,3266.3,3265.5,3.36853]
[1736482826356,0.74297543,3266.4,3265.6,0.03061902]
[1736482826555,0.74297543,3266.4,3265.6,3.09283902]
[1736482827413,0.02064073,3266.3,3265.6,3.06222]
[1736482827641,0.7565,3266.2,3265.6,3.06222]
[1736482827826,0.02064073,3266.1,3265.6,3.06222]
[1736482829466,0.7565,3266.2,3265.6,3.06222]
[1736482829760,0.02064073,3266.1,3265.6,3.06222]
[1736482829966,0.02064073,3266.1,3265.2,0.8136]
[1736482830262,0.8037,3266.3,3265.4,0.8289]
[1736482830468,0.8037,3266.3,3265.7,3.06212]
[1736482830616,0.8037,3266.3,3265.8,0.306212]
[1736482830813,0.82434073,3266.3,3265.8,3.06202]
[1736482831056,0.82434073,3266.3,3265.6,3.06219]
[1736482831832,0.82434073,3266.3,3265.4,0.8289]
[1736482832033,0.82434073,3266.3,3265.7,3.06212]
[1736482832665,0.8037,3266.3,3265.7,3.06212]
[1736482832995,0.8037,3266.3,3265.8,0.306212]
[1736482833297,0.8037,3266.3,3265.8,3.368232]
[1736482834379,3.0,3266.4,3266.0,3.06181]
[1736482834605,0.7575,3266.7,3266.0,3.09242807]
[1736482834825,0.02064073,3266.6,3266.1,0.38815281]
[1736482835103,5.28263598,3266.5,3265.5,3.0623]
[1736482835260,0.77814073,3266.4,3265.4,0.7891]
[1736482835594,0.77814073,3266.4,3265.7,3.0621]
[1736482836197,0.77814073,3266.4,3265.4,0.7891]
[1736482836198,0.77814073,3266.4,3265.5,3.06229]
[1736482836497,0.77814073,3266.4,3265.5,3.470029]
[1736482838104,0.77814073,3266.4,3265.3,3.06248]
[1736482838403,0.7853,3266.3,3265.5,0.226]
[1736482838582,0.02064073,3266.2,3265.5,0.226]
[1736482839108,0.7853,3266.1,3265.5,0.226]
[1736482839281,0.02064073,3266.0,3265.5,0.226]
[1736482839476,0.7853,3265.9,3264.7,1.1242669]
[1736482839677,0.7853,3265.6,3264.9,3.06286]
[1736482839916,0.80594073,3265.6,3264.9,3.06286]
[1736482840898,0.7853,3265.6,3264.9,3.06286]
[1736482842823,0.02064073,3265.5,3264.8,0.226]
[1736482843025,0.7853,3265.4,3264.8,0.226]
[1736482843927,0.02064073,3265.3,3264.8,0.226]
[1736482844225,5.28,3265.7,3265.1,0.8149]
[1736482845200,0.02064073,3265.6,3265.1,0.226]
[1736482845727,0.7853,3265.5,3265.1,0.226]
[1736482845928,0.02064073,3265.4,3265.1,0.226]
[1736482846229,0.7853,3265.5,3265.1,0.226]
[1736482846586,0.80594073,3265.5,3265.1,0.226]
[1736482848989,0.7853,3265.5,3265.1,0.226]
[1736482849518,0.02064073,3265.4,3264.8,3.28897]
[1736482849718,0.02064073,3265.4,3264.8,3.617867]
[1736482849918,0.7853,3265.5,3264.8,3.617867]
[1736482850427,0.7853,3265.5,3264.9,3.06288]
[1736482850725,0.7853,3265.5,3265.0,3.8571]
[1736482851129,0.7853,3265.5,3265.1,0.226]
[1736482851522,0.02064073,3265.4,3265.1,0.226]
[1736482852018,0.7853,3265.5,3265.1,0.226]
[1736482852321,0.80594073,3265.5,3265.1,0.226]
[1736482852628,0.7853,3265.5,3265.1,0.226]
[1736482852841,0.80594073,3265.5,3265.1,0.226]
[1736482853219,1.7145348,3265.5,3265.1,0.226]
[1736482854396,1.7145348,3265.5,3264.5,0.8007]
[1736482854707,3.7844,3265.3,3264.6,0.226]
[1736482854894,3.7844,3265.3,3264.2,3.06348]
[1736482854895,0.7844,3265.1,3264.5,0.226]
[1736482855296,0.7844,3265.1,3264.4,0.226]
[1736482855497,0.7844,3265.1,3264.4,1.0267]
[1736482855996,0.7844,3265.1,3264.4,4.08996]
[1736482856312,0.7844,3265.1,3264.5,0.408996]
[1736482856634,0.7844,3265.1,3264.5,3.06325]
[1736482856994,0.7844,3265.1,3264.6,3.06314]
[1736482860748,0.7844,3265.1,3264.5,0.03062897]
[1736482860948,0.766,3265.5,3264.7,0.03062897]
[1736482861132,0.766,3265.5,3264.9,3.8282]
[1736482861319,0.766,3265.5,3265.0,0.38282]
[1736482861942,0.766,3265.5,3265.1,0.03062633]
[1736482862257,0.766,3265.5,3265.2,3.06257]
[1736482862854,3.0,3265.6,3265.2,3.06257]
[1736482863022,3.0,3265.6,3265.0,3.09338377]
[1736482863228,3.0,3265.6,3265.0,3.44863838]
[1736482863229,3.02064073,3265.6,3265.0,3.44863838]
[1736482863520,0.7899,3265.5,3264.7,0.226]
[1736482863725,0.7899,3265.3,3264.7,0.226]
[1736482865750,3.0,3265.6,3264.8,0.7642]
[1736482865751,0.7899,3265.5,3264.8,0.7642]
[1736482865952,0.81054073,3265.5,3264.7,3.28904]
[1736482866252,0.81054073,3265.5,3264.7,3.694364]
[1736482866549,0.81054073,3265.5,3264.8,3.06296]
[1736482867266,0.81054073,3265.5,3264.7,0.226]
[1736482867267,3.87287073,3265.5,3264.7,0.226]
[1736482867500,0.7899,3265.3,3264.7,0.226]
[1736482867632,0.7899,3265.1,3264.2,3.06351]
[1736482867967,0.7899,3264.9,3263.8,3.0639]
[1736482868168,7.56263598,3265.1,3263.8,3.0639]
[1736482868169,0.7899,3264.6,3263.8,0.226]
[1736482868317,0.02064073,3264.5,3263.8,0.226]
[1736482868512,0.7899,3264.4,3263.9,0.328999]
[1736482874385,0.7899,3264.4,3263.8,0.226]
[1736482875071,0.7899,3264.4,3263.8,3.2899]
[1736482879516,0.7899,3264.4,3262.6,1.478128]
[1736482879517,0.806,3263.9,3262.7,0.8041]
[1736482879720,0.806,3263.8,3262.9,0.226]
[1736482879902,3.806,3263.6,3262.7,3.29092]
[1736482880092,0.806,3263.4,3262.7,3.06492]
[1736482880411,0.02064073,3263.3,3262.7,3.06492]
[1736482883589,0.02064073,3263.3,3262.6,0.226]
[1736482884786,0.02064073,3263.3,3262.6,3.29102]
[1736482884986,0.02064073,3263.3,3262.7,0.329102]
[1736482885735,0.806,3263.4,3262.7,0.35974806]
[1736482886239,0.806,3263.4,3262.9,3.06474]
[1736482886529,0.82664073,3263.4,3262.6,0.226]
[1736482886734,2.28263598,3263.1,3261.9,0.8121]
[1736482886891,0.7946,3262.9,3262.1,3.29043]
[1736482887314,0.7946,3262.9,3262.3,3.06531]
[1736482888588,0.7946,3262.9,3262.4,3.06522]
[1736482890357,0.7946,3262.9,3262.1,0.225]
[1736482890358,0.7946,3262.9,3262.2,3.0654]
[1736482890536,0.7946,3262.9,3262.3,3.3943]
[1736482890741,0.7946,3262.9,3262.3,0.32904]
[1736482890913,0.7946,3262.9,3262.1,3.2905]
[1736482891348,0.7946,3262.9,3262.2,3.06538]
[1736482891559,0.7946,3262.9,3262.1,0.225]
[1736482891725,0.7946,3262.9,3262.3,3.06529]
[1736482901222,0.7647,3262.7,3261.7,3.06581]
[1736482901417,0.7647,3262.7,3261.8,0.225]
[1736482901418,0.7647,3262.5,3261.8,0.225]
[1736482901622,0.02064073,3262.4,3261.8,0.225]
[1736482901824,0.7647,3262.5,3261.9,3.09634387]
[1736482902070,0.02064073,3262.4,3261.9,3.06569]
[1736482902323,0.02064073,3262.4,3261.9,3.394759]
[1736482902863,0.7647,3262.5,3261.9,3.394759]
[1736482903268,0.7647,3262.3,3261.8,0.225]
[1736482904294,0.7647,3262.3,3261.8,3.29078]
[1736482905456,0.7647,3262.3,3261.8,0.225]
[1736482905655,0.7647,3262.3,3261.3,0.7523]
[1736482905656,0.8313,3262.1,3261.4,3.06611]
[1736482905857,0.8313,3262.1,3261.0,0.225]
[1736482905858,0.85194073,3262.0,3261.0,0.225]
[1736482906200,3.8313,3261.8,3261.0,3.29154]
[1736482906481,0.02064073,3261.7,3261.1,0.406524]
[1736482906630,0.8313,3261.6,3260.8,3.29173]
[1736482906830,0.02064073,3261.5,3260.8,3.29173]
[1736482907860,0.02064073,3261.5,3260.8,0.225]
[1736482908044,3.11393598,3261.6,3260.9,3.09729321]
[1736482908245,3.11393598,3261.6,3261.0,0.33222932]
[1736482908832,0.8313,3261.6,3261.0,0.33222932]
[1736482910066,0.02064073,3261.5,3260.8,3.06672]
[1736482910266,0.8188,3261.4,3260.8,3.06672]
[1736482911701,0.8188,3261.4,3260.7,0.225]
[1736482911933,0.8188,3261.4,3260.7,3.29178]
[1736482912280,0.02064073,3261.3,3260.8,3.06671]
[1736482912682,0.02064073,3261.3,3260.7,3.2918]
[1736482913083,0.02064073,3261.3,3260.9,3.06661]
[1736482913328,0.8188,3261.4,3260.9,3.06661]
[1736482914323,0.83944073,3261.4,3260.9,3.06661]
[1736482915316,0.8188,3261.4,3260.9,3.06661]
[1736482916583,0.83944073,3261.4,3260.7,0.55418]
[1736482917516,0.83944073,3261.4,3260.7,3.62098]
[1736482918035,0.8188,3261.4,3260.7,3.62098]
[1736482918528,0.02064073,3261.3,3260.7,3.62098]
[1736482919532,0.8188,3261.4,3260.7,3.62098]
[1736482919901,0.02064073,3261.3,3260.7,3.62098]
[1736482920615,0.8188,3261.4,3260.7,3.62098]
[1736482920906,0.02064073,3261.3,3260.7,3.62098]
[1736482921250,0.8188,3261.2,3260.7,0.225]
[1736482921743,0.8188,3261.2,3260.5,3.06699]
[1736482923820,0.8188,3261.2,3260.4,0.224]
[1736482924020,0.8188,3261.2,3260.7,3.06678]
[1736482925300,0.8188,3261.2,3260.6,0.7586]
[1736482925636,0.8188,3261.2,3260.5,0.03066538]
[1736482925637,0.817,3261.7,3261.1,0.7586]
[1736482925796,0.817,3261.7,3261.4,3.06607]
[1736482926139,0.817,3262.0,3261.7,3.06585]
[1736482926344,0.817,3262.0,3261.5,0.33726559]
[1736482926551,0.817,3262.0,3261.5,0.03065859]
[1736482926753,0.817,3262.0,3261.5,3.06598]
[1736482928225,0.817,3262.0,3261.3,0.224]
[1736482928423,0.817,3261.8,3261.3,0.224]
[1736482928647,0.83764073,3261.7,3261.3,0.224]
[1736482928851,1.4496684,3261.7,3261.3,0.224]
[1736482929006,0.6326684,3261.7,3261.3,0.224]
[1736482929212,6.097,3261.6,3260.7,0.224]
[1736482929438,0.8051,3261.4,3260.7,0.224]
[1736482929623,0.82574073,3261.3,3260.7,0.224]
[1736482929837,0.8051,3261.3,3260.9,3.06662]
[1736482930448,0.8051,3261.3,3260.7,3.29081]
[1736482931132,0.8051,3261.3,3260.8,0.03066409]
[1736482931461,0.8051,3261.8,3261.4,3.06607]
[1736482932211,0.8051,3261.8,3261.2,3.06634]
[1736482932416,0.8051,3261.8,3261.0,3.06653]
[1736482932639,0.8051,3261.6,3261.0,3.06653]
[1736482933663,0.8051,3261.6,3260.7,3.29074]
[1736482933860,0.8051,3261.6,3261.3,3.06617]
[1736482934047,0.8051,3261.6,3260.9,3.06663]
[1736482934240,0.8051,3261.6,3261.1,0.7987]
[1736482934545,0.8051,3261.9,3261.6,3.06596]
[1736482939196,0.8051,3261.7,3261.2,3.06633]
[1736482940289,0.8051,3261.5,3260.6,0.224]
[1736482940455,0.02064073,3261.4,3260.6,0.632973]
[1736482940775,0.8051,3261.5,3261.0,3.06648]
[1736482940980,0.8051,3261.5,3260.6,3.29087]
[1736482941201,0.8051,3261.5,3260.6,0.224]
[1736482941486,0.8051,3261.5,3261.1,3.06641]
[1736482942481,0.8051,3261.5,3260.9,3.06662]
[1736482943371,0.02064073,3261.4,3260.6,0.63298]